[Event "Chinese Championship-B Women 2024"]
[Site "Liaocheng"]
[Date "2024.04.25"]
[Round "10.3"]
[White "Ren, Xiaoyi"]
[Black "Zhou, Shumeng"]
[Result "0-1"]
[ECO "D30"]
[WhiteElo "2075"]
[BlackElo "1800"]
[Annotator "TA"]
[PlyCount "122"]
[EventDate "2024.04.24"]
[EventType "swiss"]
[EventCountry "CHN"]
[SourceTitle "playchess.com"]
[Source "ChessBase"]
[SourceQuality "1"]
[TimeControl "5400+30"]

{[%evp 9,122,0,20,21,22,10,21,12,20,0,0,-8,2,0,0,-32,-32,-43,-33,-37,-37,-42,-39,-68,-73,-81,-7,-7,0,-61,-56,-75,-62,-93,-73,-131,-84,-210,-173,-187,-189,-470,-154,-143,-149,-137,-141,-206,-197,-238,-229,-244,-237,-290,-278,-239,-208,-254,-271,-313,-283,-285,-213,-225,-95,-93,-83,-83,-92,-85,-87,-89,-81,-81,-82,-96,-54,-95,-95,-95,-95,-95,-95,-95,-95,-95,-95,-122,-122,-145,-38,-38,-38,-38,-38,-29968,-29969,-29974,-29975,-29975,-29976,-29974,-29976,-29976,-29977,-29980,-29981,-29983,-29984,-29983,-29984,-29987,-29988,-29989,-29990]} 1. d4 {[%emt 0:07:50]} d5 {[%emt 0:00:05]} 2. c4 {[%emt 0:00:03]} e6 {[%emt 0:00:06]} 3. Nf3 {[%emt 0:00:22]} Nf6 {[%emt 0:00:05]} 4. e3 {[%emt 0:00:12]} Be7 {[%emt 0:00:23]} 5. a3 {[%emt 0:01:14]} a5 {[%emt 0:01:41]} 6. b3 {[%emt 0:00:21]} O-O {[%emt 0:01:20]} 7. Bd3 {[%emt 0:00:14]} b6 {[%emt 0:00:36]} 8. Bb2 {[%emt 0:00:09] The position is equal.} Nbd7 {[%emt 0:03:57]} 9. Nbd2 {[%emt 0:04:36]} Bb7 {[%emt 0:03:18]} 10. Qc2 {[%emt 0:00:10]} Re8 {[%emt 0:07:48]} 11. O-O {[%emt 0:00:39]} c5 {[%emt 0:02:16]} 12. Rad1 {[%emt 0:03:06] [#]} a4 $1 {[%emt 0:08:37]} 13. Ne5 {[%emt 0:04:55]} (13. bxa4 Bc6) 13... cxd4 {[%emt 0:07:37]} 14. exd4 {[%emt 0:06:53]} axb3 15. Qxb3 {[%emt 0:00:15]} Ra7 {[%emt 0:19:53]} 16. Rfe1 {[%emt 0:01:03]} Qa8 {[%emt 0:04:43]} 17. Re3 {[%emt 0:00:12]} Nxe5 (17... Bxa3 $2 18. Bxa3 (18. Nxd7 Nxd7 19. Bxa3 dxc4 $18) 18... Nxe5 (18... Rxa3 $2 19. Qxa3 Qxa3 20. Bxh7+ Nxh7 21. Rxa3 $18) 19. dxe5 $18) (17... Rd8 $17) 18. dxe5 $11 {[%emt 0:00:15]} Nd7 {[%emt 0:09:35]} 19. Qc2 {[%emt 0:17:50]} (19. Bxh7+ $11 Kxh7 20. Rh3+ Kg8 21. Qf3) 19... Nf8 $15 {[%emt 0:02:07]} 20. cxd5 {[%emt 0:02:23]} Bxd5 {[%emt 0:00:21]} 21. Be4 {[%emt 0:00:05]} Rd8 {[%emt 0:05:50][%cal Ob6b5]} 22. Bd4 {[%emt 0:17:45]} ({Better is} 22. g3) 22... Rxa3 {[%emt 0:07:23]} ({Reject} 22... Bxa3 $6 23. Bxb6 Bxe4 24. Rxe4 $11) (22... Bxe4 $142 23. Qxe4 Rxa3 24. Rxa3 Qxa3) 23. Ree1 {[%emt 0:11:30]} (23. Rxa3 $17 {was necessary.} Bxa3 24. Bxd5 Qxd5 (24... Rxd5 25. Bxb6 Nd7 26. Be3 $17) 25. Bxb6) 23... b5 {[%emt 0:05:00]} 24. Bxd5 {[%emt 0:20:28]} Rxd5 {[%emt 0:00:41]} 25. Ne4 $2 {[%emt 0:00:00]} (25. Nf1) 25... Qd8 $2 {[%emt 0:01:07]} (25... Ra4 $19 26. Nc3 Raxd4 (26... Rdxd4 $2 27. Nxa4 Rxd1 28. Rxd1 $19) 27. Nxd5 Qxd5 (27... Rxd5 $2 28. Qc7 $19) 28. Rxd4 Qxd4) 26. Bb2 $17 {[%emt 0:00:00]} Rad3 {[%emt 0:00:33]} 27. Rxd3 {[%emt 0:00:00]} Rxd3 $40 {[%emt 0:00:02][%mdl 128] Black is out for blood.} 28. Nd6 {[%emt 0:00:00]} (28. Rc1 $17 {was worth a try.}) 28... Rd5 $19 {[%emt 0:00:22]} 29. Ba3 {[%emt 0:00:00]} Qa5 {[%emt 0:00:47]} 30. Qc1 {[%emt 0:00:00]} b4 {[%emt 0:00:48]} 31. Nc4 {[%emt 0:00:00]} Qc7 {[%emt 0:02:47]} 32. Bb2 {[%emt 0:00:00]} h6 {[%emt 0:01:28]} ({Much less strong is} 32... Rc5 33. Re4 $19) 33. g3 {[%emt 0:00:00]} Nd7 {[%emt 0:01:26][%cal Bf8d7,Bd7c5,Bc5d3][%mdl 32]} 34. Qf4 {[%emt 0:01:59]} Nc5 {[%emt 0:00:32] ...Nd3 would now be deadly.} 35. Nd6 {[%emt 0:00:43]} Bxd6 {[%emt 0:00:26]} 36. exd6 {[%emt 0:00:03] [#]} Qxd6 {[%emt 0:00:01]} (36... Qb7 $1 $19 {has better winning chances. aiming for ...Nd3.} 37. Qg4 f5 (37... Rxd6 38. Qxg7#)) 37. Qxb4 $17 {[%emt 0:00:06]} Nd3 {[%emt 0:00:48]} 38. Qxd6 {[%emt 0:00:05]} Rxd6 {[%emt 0:00:01][%mdl 4096] Endgame. KRB-KRN} 39. Rd1 {[%emt 0:00:04]} Rd5 {[%emt 0:00:18]} 40. Bc3 {[%emt 0:00:16] [#]} Nf4 $1 {[%emt 0:01:31]} 41. Rxd5 {[%emt 0:01:05]} (41. Re1 Nd3) 41... Nxd5 {[%emt 0:00:02] KB-KN} 42. Bd4 {[%emt 0:01:03]} f6 {[%emt 0:00:13]} 43. f3 {[%emt 0:02:14]} e5 {[%emt 0:00:09]} 44. Bc5 {[%emt 0:00:09]} Kf7 {[%emt 0:00:03]} 45. Kf2 {[%emt 0:00:03]} f5 {[%emt 0:00:19]} 46. Bd6 {[%emt 0:00:13]} Kf6 {[%emt 0:00:06]} 47. Bc5 {[%emt 0:00:30]} h5 {[%emt 0:00:42]} 48. h3 {[%emt 0:01:16]} g5 {[%emt 0:00:52]} 49. Bf8 {[%emt 0:00:46]} g4 {[%emt 0:00:54]} (49... Ne7 $17 50. Kf1 Ng6) 50. hxg4 {[%emt 0:02:25]} fxg4 {[%emt 0:00:48]} 51. fxg4 {[%emt 0:00:00]} hxg4 {[%emt 0:00:02] ( -> ...Kf5)} 52. Ba3 $2 {[%emt 0:00:00][%mdl 8192]} (52. Ke2 $15) 52... Kf5 {[%emt 0:00:06] Black mates.} 53. Bb2 {[%emt 0:00:10]} Ke4 {[%emt 0:00:05]} 54. Ke2 {[%emt 0:00:36]} Ne7 {[%emt 0:00:58]} 55. Bc3 {[%emt 0:00:53]} Nf5 {[%emt 0:00:05]} 56. Kf2 {[%emt 0:00:06]} Nd4 {[%emt 0:00:22]} 57. Bb2 {[%emt 0:01:02]} Kd3 {[%emt 0:00:07]} 58. Ba1 {[%emt 0:00:38]} Nf3 {[%emt 0:00:19]} 59. Bb2 {[%emt 0:00:04]} e4 {[%emt 0:00:06]} 60. Bc1 {[%emt 0:00:01]} Nd2 {[%emt 0:00:24]} 61. Ba3 {[%emt 0:01:22]} e3+ {[%emt 0:00:13] Weighted Error Value: White=0.31/Black=0.24 (precise) .  Loses game:     	White=1     	---        Missed win:     	---       	Black=1      Mistake:       	White=5     	Black=4      Inaccurate:     	White=4     	Black=1      OK:         	White=10    	Black=18     Best:        	White=1     	Black=3} 0-1

[Event "Chinese Championship-B Women 2024"]
[Site "Liaocheng"]
[Date "2024.04.25"]
[Round "10.4"]
[White "Chu, Ruotong"]
[Black "Du, Yuxin"]
[Result "1/2-1/2"]
[ECO "E06"]
[WhiteElo "2124"]
[BlackElo "1960"]
[Annotator "TA"]
[PlyCount "61"]
[EventDate "2024.04.24"]
[EventType "swiss"]
[EventCountry "CHN"]
[SourceTitle "playchess.com"]
[Source "ChessBase"]
[SourceQuality "1"]
[TimeControl "5400+30"]

{[%evp 18,61,0,-7,24,22,14,16,23,12,27,14,19,22,26,25,35,24,14,28,34,13,22,24,50,21,35,16,15,16,15,-42,0,0,0,0,0,0,0,0,0,0,0,0,0,0]} 1. c4 {[%emt 0:06:42]} e6 {[%emt 0:00:25]} 2. Nf3 {[%emt 0:00:19]} d5 {[%emt 0:01:36]} 3. g3 {[%emt 0:01:00]} Nf6 {[%emt 0:00:20]} 4. Bg2 {[%emt 0:00:06]} Be7 {[%emt 0:00:46]} 5. d4 {[%emt 0:01:43]} O-O {[%emt 0:00:11]} 6. Qc2 {[%emt 0:00:11]} c5 {[%emt 0:02:15]} 7. O-O {[%emt 0:01:54]} cxd4 {[%emt 0:01:51]} 8. Nxd4 {[%emt 0:00:07]} Nc6 {[%emt 0:02:46]} 9. Nxc6 {[%emt 0:00:32]} bxc6 {[%emt 0:00:05]} 10. b3 {[%emt 0:00:28]} Qb6 {[%emt 0:08:09]} (10... e5 $5) 11. Bb2 {[%emt 0:00:11]} Ba6 {[%emt 0:03:15]} 12. Nd2 {[%emt 0:01:27][%cal Bb1d2,Bd2f3,Bf3e5][%mdl 32]} Rfd8 {[%emt 0:03:37]} 13. Nf3 {[%emt 0:00:41]} Rac8 {[%emt 0:01:38]} 14. Rfd1 {[%emt 0:08:55]} h6 {[%emt 0:06:57]} 15. Rac1 {[%emt 0:03:04]} dxc4 16. bxc4 {[%emt 0:01:22]} c5 {[%emt 0:31:00]} 17. Bc3 {[%emt 0:07:25]} Bb7 {[%emt 0:04:49]} 18. Ne5 {[%emt 0:09:50]} Bxg2 {[%emt 0:00:50]} 19. Kxg2 {[%emt 0:00:04]} Rxd1 {[%emt 0:12:13]} 20. Rxd1 {[%emt 0:01:09]} Rb8 {[%emt 0:00:11]} 21. f3 {[%emt 0:02:09]} Qa6 {[%emt 0:01:48] Against Qa4} 22. Rb1 {[%emt 0:02:29]} Rxb1 {[%emt 0:00:30]} 23. Qxb1 {[%emt 0:00:03]} Bd6 {[%emt 0:02:51] Against Qb8+} 24. Qb3 {[%emt 0:01:25]} (24. Qc2 $11) 24... Bxe5 {[%emt 0:01:08]} (24... Nd5 $5 25. Bb2 Nb6 $15) 25. Bxe5 $15 {[%emt 0:00:05][%mdl 4096] Endgame. KQB-KQN. The position is equal.} Nd7 {[%emt 0:00:05]} 26. Bf4 {[%emt 0:00:03]} Nb6 {[%emt 0:01:22]} 27. Bd6 {[%emt 0:02:55]} Nxc4 {[%emt 0:00:49]} 28. Bxc5 {[%emt 0:00:36]} Nd2 {[%emt 0:02:40][%csl LRb3,LRe2]} 29. Qe3 {[%emt 0:02:43]} Qxa2 {[%emt 0:00:42]} 30. Bxa7 {[%emt 0:00:03]} Qa1 {[%emt 0:02:32][%csl Gd2][%cal Ra1f1] [#]} 31. Qxd2 {[%emt 0:00:29] Weighted Error Value: White=0.09 (flawless) /Black=0.06 (flawless) .  Mistake:       	White=1     	---        Inaccurate:     	White=1     	Black=2      OK:         	White=6     	Black=9      Best:        	---       	Black=2} 1/2-1/2

[Event "Chinese Championship-B Women 2024"]
[Site "Liaocheng"]
[Date "2024.04.25"]
[Round "10.5"]
[White "Guo, Hanxi"]
[Black "Hu, Yu A."]
[Result "0-1"]
[ECO "B94"]
[WhiteElo "1699"]
[BlackElo "2148"]
[Annotator "TA"]
[PlyCount "78"]
[EventDate "2024.04.24"]
[EventType "swiss"]
[EventCountry "CHN"]
[SourceTitle "playchess.com"]
[Source "ChessBase"]
[SourceQuality "1"]
[TimeControl "5400+30"]

{[%evp 13,78,0,8,12,61,42,40,16,8,9,29,0,27,-7,0,-5,0,-4,0,0,0,0,22,0,19,0,20,-9,-23,-209,-204,-278,-266,-479,-489,-464,-468,-472,-406,-431,-420,-563,-533,-852,-582,-29988,-29989,-29989,-29990,-29990,-696,-648,-490,-506,-502,-511,-511,-511,-511,-496,-491,-639,-639,-621,-622,-593,-564]} 1. e4 {[%emt 0:00:04]} c5 {[%emt 0:00:08]} 2. Nf3 {[%emt 0:00:20]} d6 {[%emt 0:00:05]} 3. d4 {[%emt 0:00:04]} cxd4 {[%emt 0:00:12]} 4. Nxd4 {[%emt 0:00:04]} Nf6 {[%emt 0:00:06]} 5. Nc3 {[%emt 0:00:04]} a6 {[%emt 0:00:17]} 6. Bg5 {[%emt 0:00:17]} Nbd7 {[%emt 0:00:09]} 7. f4 {[%emt 0:01:23]} Qc7 {[%emt 0:00:21]} 8. Qf3 {[%emt 0:02:54]} g6 {[%emt 0:00:14]} (8... e6 $11 {was preferrable.}) 9. O-O-O $14 {[%emt 0:02:05]} Bg7 {[%emt 0:00:04]} 10. g4 {[%emt 0:32:59] White is slightly better.} h6 {[%emt 0:21:34] Against h4} 11. Bxf6 {[%emt 0:03:44]} Nxf6 {[%emt 0:00:06]} 12. h3 {[%emt 0:03:13]} Bd7 {[%emt 0:21:46]} 13. g5 {[%emt 0:08:32]} hxg5 14. fxg5 {[%emt 0:00:10]} Nh5 {[%emt 0:01:48] next ...Qc5 is good for Black.} 15. Nd5 {[%emt 0:01:18]} Qd8 {[%emt 0:00:12] Hoping for ...e6.} 16. h4 {[%emt 0:06:57]} e6 {[%emt 0:00:19]} 17. Ne3 {[%emt 0:00:56]} b5 {[%emt 0:01:04]} 18. Kb1 {[%emt 0:11:44]} Rc8 {[%emt 0:03:02]} 19. Bh3 {[%emt 0:02:14]} Qc7 {[%emt 0:04:16]} 20. Rhf1 {[%emt 0:03:18]} O-O {[%emt 0:01:24]} 21. Nb3 $2 {[%emt 0:11:30] Prevents Qc5. This costs White the game.} (21. Rf2 $11 {and White has nothing to worry.}) 21... a5 $19 {[%emt 0:01:12]} 22. Bg4 {[%emt 0:03:21]} a4 {[%emt 0:00:14]} 23. Bxh5 $2 {[%emt 0:00:59]} (23. Nd4 Qc5 24. Bxh5 Bxd4 25. Rxd4 Qxd4 26. Ng4) 23... axb3 {[%emt 0:00:26]} (23... gxh5 24. Nd4 Qb7 25. Ndf5 exf5 26. Nd5 $19) 24. cxb3 {[%emt 0:01:15]} gxh5 {[%emt 0:00:11]} 25. Qxh5 {[%emt 0:00:26]} Qc5 {[%emt 0:00:32]} 26. Qe2 {[%emt 0:01:51]} b4 {[%emt 0:03:12]} 27. Rf4 {[%emt 0:01:44]} Bb5 {[%emt 0:02:13]} 28. Qd2 {[%emt 0:00:33]} Qe5 {[%emt 0:08:54] Threatens to win with ...Bd3+.} 29. Ng4 {[%emt 0:00:27] [#]} Bd3+ $1 {[%emt 0:00:07][%mdl 512]} 30. Ka1 {[%emt 0:00:15] [#]} Ra8 $1 {[%emt 0:00:07]} 31. a4 {[%emt 0:00:48] [#]} bxa3 $1 {[%emt 0:00:24]} 32. Nxe5 {[%emt 0:00:24] Black is clearly winning.} axb2+ {[%emt 0:00:05]} 33. Kxb2 {[%emt 0:00:11]} Bxe5+ {[%emt 0:00:03] A strong pair of Bishops.} (33... dxe5 $2 {loses.} 34. Rxf7 Rxf7 35. Qxd3 $18) 34. Qc3 {[%emt 0:00:19][%cal Od1d3]} Rfc8 {[%emt 0:01:16]} 35. Rxd3 {[%emt 0:01:02][%cal Oc3e5]} Rxc3 {[%emt 0:00:05]} ({Stronger than} 35... Bxc3+ 36. Rxc3 Rxc3 37. Kxc3 Rc8+ 38. Kb2 $14) 36. Rxc3 {[%emt 0:00:04]} Bxf4 {[%emt 0:00:05]} 37. Rf3 {[%emt 0:00:45]} Be5+ {[%emt 0:00:42]} 38. Kc1 {[%emt 0:00:36]} Ra1+ {[%emt 0:01:09]} 39. Kc2 {[%emt 0:00:06]} Rh1 {[%emt 0:00:55] Weighted Error Value: White=0.74/Black=0.44.  Loses game:     	White=1     	---        Mistake:       	White=1     	Black=1      Inaccurate:     	White=8     	Black=2      OK:         	White=6     	Black=14     Best:        	White=2     	Black=3} 0-1

[Event "Chinese Championship-B Women 2024"]
[Site "Liaocheng"]
[Date "2024.04.25"]
[Round "10.6"]
[White "Guo, Weibao"]
[Black "Zhao, Chenyu"]
[Result "1/2-1/2"]
[ECO "D00"]
[WhiteElo "1954"]
[BlackElo "1909"]
[Annotator "NA RC"]
[PlyCount "77"]
[EventDate "2024.04.24"]
[EventType "swiss"]
[EventCountry "CHN"]
[SourceTitle "playchess.com"]
[Source "ChessBase"]
[SourceQuality "1"]
[TimeControl "5400+30"]

1. d4 {[%emt 0:01:44]} Nf6 {[%emt 0:00:10]} 2. Bg5 {[%emt 0:01:16]} d5 {[%emt 0:00:27]} 3. Bxf6 {[%emt 0:00:26]} exf6 {[%emt 0:00:05]} 4. e3 {[%emt 0:00:02]} Bd6 {[%emt 0:02:07]} 5. Bd3 {[%emt 0:00:06]} c6 {[%emt 0:02:23]} 6. Nd2 {[%emt 0:00:05]} a5 {[%emt 0:04:09] D00: 1 d4 d5: Unusual lines.} 7. Ne2 {[%emt 0:03:53]} Qc7 {[%emt 0:04:03]} 8. h3 {[%emt 0:03:31]} Nd7 {[%emt 0:03:37]} 9. O-O {[%emt 0:01:36]} O-O {[%emt 0:00:56]} 10. c4 {[%emt 0:00:57]} dxc4 {[%emt 0:01:15]} 11. Nxc4 {[%emt 0:01:19]} Be7 {[%emt 0:04:34]} 12. Rc1 {[%emt 0:05:06]} Nb6 {[%emt 0:01:40]} 13. Nxb6 Qxb6 {[%emt 0:00:02]} 14. Qc2 {[%emt 0:08:10]} g6 {[%emt 0:02:05]} 15. Bc4 {[%emt 0:03:57]} f5 {[%emt 0:05:02]} 16. Nf4 {[%emt 0:01:57]} Bd6 {[%emt 0:01:28]} 17. Nd3 {[%emt 0:01:43]} Qd8 {[%emt 0:04:01]} 18. a4 {[%emt 0:04:37]} Bd7 {[%emt 0:05:38]} 19. Rfd1 {[%emt 0:05:33]} Qg5 {[%emt 0:04:15]} 20. Ne5 {[%emt 0:07:33]} Qe7 {[%emt 0:09:45]} 21. Qb3 {[%emt 0:04:02]} Bc8 {[%emt 0:06:05]} 22. Qc3 {[%emt 0:05:31]} Bb4 {[%emt 0:03:33]} 23. Qb3 {[%emt 0:05:10]} Bd6 {[%emt 0:00:27]} 24. f4 {[%emt 0:07:39]} (24. Nf3 $11 {is superior.}) 24... Kg7 {[%emt 0:01:00]} 25. Re1 {[%emt 0:02:07]} Bb4 {[%emt 0:02:08]} 26. Re2 {[%emt 0:01:03]} Rb8 {[%emt 0:04:17]} 27. Qd3 {[%emt 0:02:09]} f6 {[%emt 0:00:55]} 28. Nf3 {[%emt 0:00:34]} Re8 {[%emt 0:00:56]} 29. Rd1 {[%emt 0:02:27]} Be6 {[%emt 0:01:46]} 30. Kf2 {[%emt 0:05:06]} Bxc4 {[%emt 0:00:42]} 31. Qxc4 {[%emt 0:00:01]} Qf7 {[%emt 0:01:53]} 32. Rc2 {[%emt 0:01:46]} Qe7 {[%emt 0:08:17]} 33. Re2 {[%emt 0:03:29]} Qf7 {[%emt 0:00:05]} 34. Rc2 {[%emt 0:01:27]} Qe7 {[%emt 0:01:22]} 35. Re2 {[%emt 0:02:43]} Qf7 {[%emt 0:00:11]} 36. Rc2 $15 {[%emt 0:01:04]} Qe7 {[%emt 0:04:25]} 37. Re2 {[%emt 0:00:58]} Qf7 {[%emt 0:03:17]} 38. Qxf7+ $11 Kxf7 39. g4 1/2-1/2

[Event "Chinese Championship-B Women 2024"]
[Site "Liaocheng"]
[Date "2024.04.25"]
[Round "10.7"]
[White "Gao, Muziyan"]
[Black "Wang, Xiaoyan"]
[Result "1/2-1/2"]
[ECO "E62"]
[WhiteElo "1891"]
[BlackElo "1932"]
[Annotator "TA"]
[PlyCount "105"]
[EventDate "2024.04.24"]
[EventType "swiss"]
[EventCountry "CHN"]
[SourceTitle "playchess.com"]
[Source "ChessBase"]
[SourceQuality "1"]
[TimeControl "5400+30"]

{[%evp 14,105,36,35,55,11,40,38,41,16,14,0,22,12,59,48,41,39,44,43,43,20,14,12,29,15,60,50,51,50,60,47,58,43,88,96,89,70,79,39,34,25,37,21,41,42,39,41,32,21,140,131,207,214,211,200,177,82,97,74,68,42,39,39,55,41,41,0,0,0,36,36,44,45,57,50,154,168,155,162,220,30,201,30,66,0,0,0,0,0,0,0,0,0]} 1. d4 {[%emt 0:01:06]} Nf6 {[%emt 0:00:08]} 2. Nf3 {[%emt 0:00:05]} g6 {[%emt 0:00:07]} 3. g3 {[%emt 0:00:04]} Bg7 {[%emt 0:00:10]} 4. Bg2 {[%emt 0:00:19]} O-O {[%emt 0:00:19]} 5. O-O {[%emt 0:00:20]} d6 {[%emt 0:00:21]} 6. c4 {[%emt 0:00:11]} Nc6 {[%emt 0:00:10]} 7. Nc3 {[%emt 0:00:22]} e5 {[%emt 0:00:35]} 8. d5 {[%emt 0:04:59]} Na5 {[%emt 0:05:27][%cal Bc6a5,Ba5b7,Bb7c5][%mdl 32]} 9. Qd3 {[%emt 0:11:28]} b6 {[%emt 0:00:51][%cal Oe5e4]} 10. e4 {[%emt 0:02:07]} Nb7 {[%emt 0:03:08] White is slightly better.} 11. a3 {[%emt 0:05:16]} a5 {[%emt 0:02:14]} 12. Qc2 {[%emt 0:01:59]} Bd7 {[%emt 0:02:37]} 13. b3 {[%emt 0:03:29]} c6 {[%emt 0:05:09]} (13... Nc5 $11) 14. dxc6 (14. Bg5 {with more complications.} cxd5 15. Nxd5 Nc5 16. Rad1) 14... Bxc6 {[%emt 0:00:08]} 15. Bb2 {[%emt 0:09:23]} Nc5 {[%emt 0:08:26]} 16. Rfe1 {[%emt 0:08:37]} Qc8 {[%emt 0:08:12]} 17. b4 {[%emt 0:04:36]} axb4 18. axb4 {[%emt 0:00:05]} Rxa1 19. Bxa1 {[%emt 0:00:07]} Ne6 {[%emt 0:06:54][%cal Ob6b5]} 20. Qd3 {[%emt 0:01:58][%cal Ob4b5]} Rd8 {[%emt 0:05:24]} 21. Bb2 {[%emt 0:02:20]} h5 {[%emt 0:04:10]} 22. Bc1 {[%emt 0:02:48]} Qb7 {[%emt 0:00:40]} 23. Bh3 {[%emt 0:03:26]} Ng4 {[%emt 0:03:48]} 24. b5 {[%emt 0:17:27]} Be8 {[%emt 0:08:04]} 25. Nd5 {[%emt 0:01:56]} Nc5 {[%emt 0:06:23]} 26. Qd1 {[%emt 0:05:52]} Ra8 $1 {[%emt 0:03:01]} 27. Nc3 {[%emt 0:02:34]} Nf6 {[%emt 0:05:52]} 28. Ng5 {[%emt 0:00:52]} Bd7 {[%emt 0:00:55]} 29. Bxd7 {[%emt 0:01:48]} Qxd7 {[%emt 0:00:18]} 30. Be3 {[%emt 0:01:25]} Bh6 {[%emt 0:09:52]} 31. h4 {[%emt 0:01:47]} Rc8 {[%emt 0:01:41]} (31... Ra3 $11 {remains equal.} 32. Bxc5 dxc5 33. Qxd7 (33. Nd5 Nxd5 34. exd5 Bxg5 $11) 33... Nxd7) 32. Bxc5 $1 $16 {[%emt 0:01:10]} dxc5 {[%emt 0:01:24] [#]} (32... bxc5 $16 33. Nf3 Kg7) 33. Qxd7 $1 $18 {[%emt 0:02:03]} ({Resist} 33. Nd5 $6 Nxd5 34. Qxd5 (34. exd5 Bxg5 35. hxg5 h4 $14) 34... Qxd5 35. exd5 Ra8) 33... Nxd7 {[%emt 0:00:02]} 34. Rd1 {[%emt 0:00:26]} Rc7 {[%emt 0:02:17]} 35. Nf3 {[%emt 0:01:21]} (35. Rd6 $18 {and White stays clearly on top. And now Nd5 would win.} Ra7 36. Nd5) 35... Ra7 $16 {[%emt 0:01:23]} 36. Kg2 {[%emt 0:01:58]} Bf8 {[%emt 0:00:26] Dodges Rd6} 37. Rd3 {[%emt 0:01:16] White is more active.} f6 {[%emt 0:00:24]} 38. Kf1 {[%emt 0:00:23]} Kf7 {[%emt 0:00:09]} 39. Ke2 {[%emt 0:00:23]} Ke6 {[%emt 0:00:07]} 40. Ne1 {[%emt 0:00:52]} Bh6 {[%emt 0:01:49]} 41. Nc2 {[%emt 0:00:28]} Ra8 {[%emt 0:01:24]} 42. Nd5 {[%emt 0:00:52] Black must now prevent Nc7+.} Ra4 {[%emt 0:01:16]} 43. Ra3 {[%emt 0:01:13]} Rxa3 {[%emt 0:00:56]} ({But not} 43... Rxc4 44. Kd3 $16) 44. Nxa3 $14 {[%emt 0:00:01][%mdl 4096] Endgame. KBN-KNN} g5 {[%emt 0:03:06] [#]} (44... f5 $14) 45. Nb1 $1 $16 {[%emt 0:00:35] Excellent horsemanship.} gxh4 {[%emt 0:01:21]} 46. gxh4 {[%emt 0:00:01]} f5 {[%emt 0:00:39]} (46... Bf8 {was worth a try.} 47. Nbc3 Be7) 47. Kf3 $2 {[%emt 0:00:34]} ({White should play} 47. Nbc3 $18) 47... Bg7 $2 {[%emt 0:00:24]} (47... f4 $11 {and Black stays safe.}) 48. Nbc3 $2 {[%emt 0:00:42]} ({Only move:} 48. Nc7+ $18 Kf7 49. exf5) 48... Bf6 {[%emt 0:00:36]} 49. Kg3 {[%emt 0:00:30]} (49. Nc7+ $1 $14 Kf7 50. exf5) 49... f4+ $11 {[%emt 0:00:41] The position is equal.} 50. Kh3 {[%emt 0:00:02]} Bd8 {[%emt 0:00:10]} 51. Ne2 {[%emt 0:00:57]} Kf7 {[%emt 0:00:10]} 52. Nec3 {[%emt 0:00:21]} Ke6 {[%emt 0:00:15]} 53. Ne2 {[%emt 0:00:04] Weighted Error Value: White=0.23 (precise) /Black=0.24 (precise) .  Loses game:     	---       	Black=1      Missed win:     	White=2     	---        Mistake:       	White=2     	Black=5      Inaccurate:     	White=4     	Black=5      OK:         	White=10    	Black=12     Best:        	White=1     	Black=4      Strong:       	White=3     	Black=1} 1/2-1/2